bitfinex-derivatives/quotes_ETHF0:USTF0_20260315
["timestamp","ask_amount","ask_price","bid_price","bid_amount"]
[1773569228961,0.56277944,2115.0,2114.3,0.00399433]
[1773569229564,0.56277944,2115.0,2114.3,0.56906557]
[1773569237367,0.56277944,2115.3,2114.3,0.56906557]
[1773569237769,0.56277944,2115.3,2114.4,0.56507124]
[1773569238272,0.56277944,2115.3,2114.3,0.56906557]
[1773569238464,0.56277944,2115.1,2114.3,0.56906557]
[1773569241580,0.56277944,2115.1,2114.3,0.00399433]
[1773569241879,0.56277944,2115.1,2114.3,0.55160503]
[1773569245780,0.56277944,2115.1,2114.3,0.00399433]
[1773569246282,0.56277944,2115.1,2114.3,0.55160503]
[1773569248888,0.55500807,2115.2,2114.3,0.55160503]
[1773569251385,0.55500807,2115.2,2114.4,0.5476107]
[1773569251787,0.55500807,2115.4,2114.4,0.5476107]
[1773569251987,0.55500807,2115.4,2114.5,0.5476107]
[1773569253489,0.55500807,2115.4,2114.6,0.5476107]
[1773569255288,0.55500807,2115.4,2114.7,0.5476107]
[1773569256590,0.55500807,2115.6,2114.7,0.5476107]
[1773569256891,0.55500807,2115.6,2114.8,0.5476107]
[1773569257990,0.55500807,2115.7,2114.8,0.5476107]
[1773569267496,0.00526597,2115.8,2115.0,0.5476107]
[1773569270395,0.00526597,2115.8,2115.0,6.49529355]
[1773569270695,0.00526597,2115.8,2115.1,0.5476107]
[1773569271391,0.54552687,2115.8,2115.1,0.5476107]
[1773569283198,0.54552687,2115.8,2115.1,5.94768285]
[1773569283403,0.54552687,2115.8,2115.2,0.55438134]
[1773569294214,0.54552687,2115.8,2115.3,0.55438134]
[1773569306624,0.54552687,2115.8,2115.3,41.35438134]
[1773569306814,0.54552687,2115.8,2115.4,0.53567656]
[1773569307019,0.54003042,2115.8,2115.2,5.94768285]
[1773569307219,0.54003042,2115.8,2115.2,6.48335941]
[1773569307923,0.54466008,2115.8,2115.2,6.48335941]
[1773569311924,0.54466008,2115.8,2115.2,5.94768285]
[1773569313424,0.54466008,2115.8,2115.2,6.48335941]
[1773569314727,0.54466008,2115.8,2115.3,0.53567656]
[1773569315028,0.57749938,2116.0,2115.4,0.53567656]
[1773569316027,0.58303603,2116.0,2115.5,0.53567656]
[1773569326346,0.58303603,2116.0,2115.3,6.48335941]
[1773569326547,0.58303603,2116.0,2115.2,5.94768285]
[1773569326847,0.58303603,2116.0,2115.2,6.48335941]
[1773569328248,0.58303603,2116.0,2115.3,0.53567656]
[1773569330652,0.58303603,2116.0,2115.2,6.48335941]
[1773569331645,0.58303603,2116.0,2115.2,0.53567656]
[1773569331850,0.58303603,2116.0,2115.1,6.48583612]
[1773569332652,0.58303603,2116.0,2115.2,0.53815327]
[1773569334456,0.58303603,2116.0,2115.1,6.48583612]
[1773569337659,0.58303603,2116.0,2115.2,0.53815327]
[1773569347366,12.61403603,2116.0,2115.2,0.53815327]
[1773569347567,0.55598339,2115.9,2115.2,0.53815327]
[1773569355477,0.55598339,2116.2,2115.7,0.26567454]
[1773569356478,0.56014524,2116.2,2115.7,0.26567454]
[1773569357372,0.56014524,2116.2,2115.3,7.6292579]
[1773569357373,0.55598339,2116.0,2115.3,6.22123995]
[1773569357776,0.55598339,2116.0,2115.3,0.2735571]
[1773569376689,0.55598339,2116.0,2115.1,6.185911]
[1773569378191,0.55598339,2116.0,2115.2,0.23839945]
[1773569398712,0.54526324,2115.8,2115.2,0.23839945]
[1773569401009,0.54526324,2116.1,2115.2,6.1860823]
[1773569401216,0.54526324,2116.1,2115.5,0.23577352]
[1773569401409,0.00416185,2116.2,2115.5,0.23577352]
[1773569401913,0.54942509,2116.2,2115.5,0.23577352]
[1773569403015,0.54942509,2116.2,2115.6,0.23515951]
[1773569408815,0.00416185,2116.2,2115.6,0.23515951]
[1773569410011,0.54526324,2116.4,2115.7,0.23449722]
[1773569411014,0.55095107,2116.4,2115.7,0.23449722]
[1773569421423,0.55095107,2116.4,2115.5,5.94768285]
[1773569421724,0.55095107,2116.4,2115.6,0.22739328]
[1773569422525,0.55095107,2116.4,2115.5,0.226668]
[1773569424226,0.55095107,2116.4,2115.5,6.17435085]
[1773569424427,0.55095107,2116.4,2115.5,0.226668]
[1773569427633,0.55095107,2116.4,2115.4,5.94768285]
[1773569428235,0.55095107,2116.4,2115.4,6.1734089]
[1773569428536,0.55095107,2116.4,2115.5,0.22572605]
[1773569430437,0.55095107,2116.4,2115.5,6.1734089]
[1773569436339,0.53557726,2116.3,2115.5,0.22572605]
[1773569438241,0.53557726,2116.3,2115.4,0.22552504]
[1773569441043,0.53557726,2116.3,2115.3,5.94768285]
[1773569441343,0.53557726,2116.3,2115.3,6.17303695]
[1773569441844,0.53557726,2116.3,2115.4,0.2253541]
[1773569449954,0.53557726,2116.3,2115.2,0.23170852]
[1773569466570,0.53557726,2116.3,2115.1,0.26051093]
[1773569481869,0.53557726,2116.3,2115.0,40.8]
[1773569482174,0.53557726,2116.3,2115.0,41.06319394]
[1773569482674,0.53557726,2116.3,2115.1,0.26319394]
[1773569489286,0.56950323,2115.8,2115.1,0.26319394]
[1773569490484,8.81550323,2115.8,2115.1,0.26319394]
[1773569490684,0.56950323,2115.7,2115.1,0.26319394]
[1773569496488,0.56950323,2115.7,2114.9,0.25877397]
[1773569500692,0.56950323,2115.7,2114.7,46.74861335]
[1773569500693,0.56950323,2115.6,2114.8,0.259527]
[1773569501089,0.56950323,2115.5,2114.8,0.259527]
[1773569505691,10.995,2115.6,2114.8,0.259527]
[1773569506293,11.60950323,2115.7,2114.8,0.259527]
[1773569507196,0.56950323,2115.7,2114.8,0.259527]
[1773569507396,0.56950323,2115.8,2115.0,0.2742319]
[1773569507998,11.68650323,2115.9,2115.0,0.2742319]
[1773569508193,11.68650323,2115.9,2115.1,0.26906245]
[1773569508395,0.56950323,2116.0,2115.1,0.26906245]
[1773569508798,0.56950323,2116.0,2115.2,0.26906245]
[1773569511098,0.56950323,2116.0,2115.3,0.26073029]
[1773569511495,0.55103258,2116.3,2115.3,0.26073029]
[1773569511802,11.901125,2116.2,2115.4,0.26059269]
[1773569511997,0.556125,2116.1,2115.4,0.26059269]
[1773569526216,0.556125,2116.3,2115.5,0.26408081]
[1773569526414,0.00568783,2116.4,2115.5,6.21269416]
[1773569526709,0.56181283,2116.4,2115.6,0.26408081]
[1773569527918,7.41852933,2117.2,2115.6,0.26408081]
[1773569527919,0.556125,2116.6,2115.6,0.26408081]
[1773569528106,0.556125,2116.6,2115.7,0.25701722]
[1773569528306,0.556125,2116.6,2115.9,0.25701722]
[1773569528810,0.56227258,2116.6,2115.9,0.26093895]
[1773569530515,0.26719403,2116.6,2115.9,0.26093895]
[1773569531014,0.00614758,2116.6,2115.9,0.49719895]
[1773569531210,0.556125,2116.7,2116.0,0.55054567]
[1773569532114,0.56003756,2116.7,2116.0,0.55054567]
[1773569533912,0.56003756,2116.7,2116.1,40.8]
[1773569534516,0.56003756,2116.7,2116.1,41.3635576]
[1773569542925,0.56003756,2116.7,2116.1,40.8]
[1773569543126,0.56003756,2116.7,2115.9,0.56661174]
[1773569543523,0.56003756,2116.7,2116.0,40.8]
[1773569543722,0.56003756,2116.7,2115.9,0.56661174]
[1773569544118,0.56003756,2116.7,2115.9,41.36661174]
[1773569544326,0.56003756,2116.7,2116.0,0.56359388]
[1773569545626,0.56003756,2116.7,2115.9,40.80392173]
[1773569545926,0.56003756,2116.7,2115.9,41.36747617]
[1773569551030,0.56003756,2116.7,2115.9,0.56747617]
[1773569553331,0.56003756,2116.7,2115.9,0.00392173]
[1773569553534,0.56892529,2116.6,2115.9,0.00392173]
[1773569553831,0.56892529,2116.5,2115.9,0.00392173]
[1773569554129,11.82692529,2116.5,2115.9,0.00392173]
[1773569554329,0.56892529,2116.4,2115.9,0.00392173]
[1773569554836,0.56892529,2116.4,2115.6,0.57834758]
[1773569555933,0.56892529,2116.4,2115.6,0.58230284]
[1773569568242,0.56892529,2116.4,2115.6,0.00395526]
[1773569569446,4.51103032,2116.4,2115.6,0.00395526]
[1773569569645,0.56892529,2116.3,2115.3,41.37220748]
[1773569570440,0.56892529,2116.3,2115.3,0.57220748]
[1773569570648,0.56892529,2116.3,2115.3,0.57657582]
[1773569572044,11.583,2116.2,2115.3,0.57657582]
[1773569572548,12.12336226,2116.2,2115.3,0.57657582]
[1773569575443,3.94210503,2116.4,2115.3,0.57657582]
[1773569575649,0.54036226,2116.3,2115.5,0.5552878]
[1773569582054,0.54036226,2116.3,2115.5,0.79532486]
[1773569582249,0.54036226,2116.3,2115.6,0.5552878]
[1773569595962,0.54036226,2116.4,2115.6,0.5552878]
[1773569597460,0.54036226,2116.4,2115.6,6.50390115]
[1773569597664,0.54036226,2116.4,2115.7,0.5552878]
[1773569609177,0.54036226,2116.4,2115.6,6.50501168]
[1773569609377,0.54036226,2116.4,2115.6,0.55639833]
[1773569610673,0.55760412,2116.3,2115.4,0.55639833]
[1773569619290,0.55760412,2116.2,2115.5,0.55639833]
[1773569633200,0.55760412,2116.2,2115.5,6.50501168]
[1773569635899,0.55760412,2116.2,2115.6,0.58174174]
[1773569640803,0.55328245,2116.4,2115.6,0.58174174]
[1773569648206,0.55328245,2116.4,2115.7,0.58174174]
[1773569652906,0.55328245,2116.6,2115.8,0.58174174]
[1773569657417,0.55328245,2116.6,2115.9,0.58174174]
[1773569672930,0.55328245,2116.6,2116.0,0.54084776]
[1773569681140,0.55328245,2116.6,2116.1,0.54084776]
[1773569687441,0.00391256,2116.7,2116.1,0.54084776]
[1773569687739,0.55006379,2116.7,2116.1,0.54084776]
[1773569692847,0.55006379,2116.7,2116.3,0.57694392]
[1773569696442,0.55006379,2116.7,2116.2,0.57694392]
[1773569697755,0.55006379,2116.7,2116.1,40.8]
[1773569698051,0.55006379,2116.7,2115.9,5.94861335]
[1773569698253,0.55006379,2116.7,2115.8,6.52555727]
[1773569698454,0.55006379,2116.7,2115.9,40.8]
[1773569700449,0.55006379,2116.7,2115.8,4.69320611]
[1773569700653,0.31533205,2116.4,2115.5,0.57694392]
[1773569700853,3.95941905,2116.5,2115.5,0.57694392]
[1773569700854,0.31533205,2116.2,2115.5,0.57694392]
[1773569701056,0.31533574,2116.1,2115.5,0.57694392]
[1773569701458,0.31533574,2116.1,2115.6,40.8]
[1773569701658,0.31533574,2116.1,2115.6,41.37694392]
[1773569703057,0.31533574,2116.1,2115.7,0.57694392]
[1773569703257,0.30774446,2116.5,2115.7,0.57694392]
[1773569703458,11.87474446,2116.5,2115.7,0.57694392]
[1773569703658,5.79169611,2116.4,2115.7,0.57694392]
[1773569703958,0.30685091,2116.3,2115.7,0.57694392]
[1773569707262,11.86839319,2116.5,2115.7,0.57694392]
[1773569707462,0.30139319,2116.4,2115.7,0.57694392]
[1773569709563,0.29511476,2116.3,2115.7,0.57694392]
[1773569710962,0.29511476,2116.3,2115.6,41.37694392]
[1773569715465,0.29511476,2116.3,2115.7,0.57694392]
[1773569716264,11.566,2116.3,2115.7,0.57694392]
[1773569716768,11.84589953,2116.3,2115.7,0.57694392]
[1773569716968,11.555,2116.5,2115.7,0.57694392]
[1773569717164,11.83480202,2116.5,2115.7,0.57694392]
[1773569717364,0.27980202,2116.4,2115.7,0.57694392]
[1773569719874,11.83780202,2116.4,2115.7,0.57694392]
[1773569720075,0.2721245,2116.3,2115.7,0.57694392]
[1773569724186,11.82961951,2116.4,2115.7,0.57694392]
[1773569725879,4.23089364,2116.6,2115.7,0.57694392]
[1773569726085,17.0522685,2116.5,2115.7,0.57694392]
[1773569726285,5.4872685,2116.4,2115.7,0.57694392]
[1773569727585,5.76369183,2116.4,2115.7,0.57694392]
[1773569728383,0.27656014,2116.3,2115.7,0.57694392]
[1773569731089,0.27656014,2116.3,2115.6,40.8]
[1773569731483,0.27656014,2116.3,2115.6,41.34958507]
[1773569735994,0.27656014,2116.3,2115.7,0.54958507]
[1773569758215,0.26213251,2116.2,2115.7,0.54958507]
[1773569758416,11.94013251,2116.1,2115.7,0.54958507]
[1773569758914,11.678,2116.1,2115.7,0.54958507]
[1773569769523,11.91059056,2116.1,2115.7,0.54958507]
[1773569778629,0.2266562,2116.0,2115.5,0.56528107]
[1773569785027,0.22011488,2115.9,2115.5,0.55429724]
[1773569785633,0.22011488,2115.9,2115.4,0.53841579]
[1773569788344,0.22011488,2115.9,2115.3,40.80436834]
[1773569788641,0.22011488,2115.9,2115.3,41.34278413]
[1773569788840,0.22011488,2115.9,2115.4,0.53841579]
[1773569805958,5.50621993,2116.0,2115.4,0.53841579]
[1773569806157,6.08353913,2116.0,2115.4,0.53841579]
[1773569808653,0.5773192,2115.9,2115.4,0.53841579]
[1773569812961,6.07530244,2115.9,2115.4,0.53841579]
[1773569813262,0.57136099,2115.8,2115.4,0.53841579]
[1773569813460,11.921,2115.7,2115.4,0.53841579]
[1773569813762,12.49236099,2115.7,2115.4,0.57274111]
[1773569814057,12.49236099,2115.7,2115.3,40.80436834]
[1773569814362,12.49236099,2115.7,2115.4,0.43450378]
[1773569816262,12.49236099,2115.7,2115.3,41.23803422]
[1773569816863,0.57136099,2115.6,2115.3,41.23803422]
[1773569817058,12.49236099,2115.7,2115.3,41.23803422]
[1773569821264,0.57136099,2115.6,2115.3,0.00436834]
[1773569822266,11.921,2115.7,2115.3,0.43643254]
[1773569824863,11.51951005,2115.7,2115.3,0.43643254]
[1773569825062,11.969,2116.0,2115.3,0.43643254]
[1773569825262,12.54136099,2116.1,2115.3,0.43643254]
[1773569825462,5.50199079,2116.0,2115.3,0.43643254]
[1773569827368,5.50199079,2116.0,2115.5,0.42383452]
[1773569828366,12.55136099,2116.1,2115.5,0.42383452]
[1773569828570,5.50045868,2116.0,2115.5,0.42383452]
[1773569831671,0.57136099,2115.9,2115.5,0.42383452]
[1773569832777,0.57136099,2115.9,2115.6,40.8]
[1773569833773,0.57136099,2115.9,2115.5,0.42383452]
[1773569834076,0.57136099,2115.9,2115.6,40.8]
[1773569834977,0.57136099,2115.9,2115.6,41.19712653]
[1773569835177,6.07181967,2116.0,2115.7,0.39712653]
[1773569838480,3.65091967,2116.0,2115.7,0.39712653]
[1773569838680,12.55136099,2116.1,2115.7,0.39712653]
[1773569840077,0.57136099,2116.3,2115.7,0.39712653]
[1773569841780,0.55596879,2116.4,2115.7,0.39712653]
[1773569843377,0.00391256,2116.7,2115.7,0.39712653]
[1773569843583,12.60496879,2116.6,2115.8,0.58046815]
[1773569845078,0.55596879,2116.6,2115.8,0.58046815]
[1773569859793,0.00391256,2116.7,2115.8,0.58046815]
[1773569859996,0.55988135,2116.7,2116.0,0.58046815]
[1773569864099,0.00391256,2116.7,2116.0,0.58046815]
[1773569866204,0.00391256,2116.7,2116.0,6.52954425]
[1773569867302,0.00391256,2116.7,2116.1,0.58046815]
[1773569869499,0.55988135,2116.7,2116.1,0.58046815]
[1773569873206,0.55988135,2116.7,2116.0,0.58328942]
[1773569883204,0.00391256,2116.7,2116.0,6.53236552]
[1773569883408,0.00391256,2116.7,2116.1,0.58328942]
[1773569887411,0.00391256,2116.7,2116.2,0.58328942]
[1773569890212,0.56455771,2116.7,2116.2,0.58328942]
[1773569896712,0.56064515,2116.8,2116.3,0.58328942]
[1773569897715,0.56656775,2116.8,2116.3,0.58328942]
[1773569900415,0.0059226,2116.8,2116.3,0.58328942]
[1773569906331,0.56064515,2116.9,2116.3,0.58328942]
[1773569907328,0.56437818,2116.9,2116.3,0.58328942]
[1773569909328,0.00373303,2116.9,2116.3,0.58328942]
[1773569910736,0.00373303,2116.9,2116.3,6.53236552]
[1773569910937,0.00373303,2116.9,2116.4,0.56311471]
[1773569913233,0.59216903,2117.1,2116.4,0.56311471]
[1773569914239,0.59569525,2117.1,2116.4,0.56311471]
[1773569914440,0.00352622,2117.1,2116.4,0.56311471]
[1773569917042,0.00352622,2117.1,2116.4,6.51219081]
[1773569917237,0.00352622,2117.1,2116.5,0.56311471]
[1773569918839,0.59569525,2117.1,2116.5,0.56311471]
[1773569919238,0.59569525,2117.1,2116.7,0.56311471]
[1773569921743,0.59216903,2117.2,2116.7,0.56311471]
[1773569922744,0.59571281,2117.2,2116.7,0.56311471]
[1773569925248,0.59216903,2117.2,2116.7,0.56311471]
[1773569926046,11.83,2117.6,2116.8,0.56311471]
[1773569926047,0.59216903,2117.6,2116.8,0.56311471]
[1773569926245,0.5973598,2117.6,2116.9,0.56311471]
[1773569927145,0.00519077,2117.6,2116.9,0.56311471]
[1773569927351,0.00519077,2117.6,2117.0,5.9490761]
[1773569927549,0.5973598,2117.6,2117.1,0.56311471]
[1773569928950,0.00519077,2117.6,2117.1,0.56311471]
[1773569929149,0.5973598,2117.6,2117.1,0.56311471]
[1773569929350,0.00519077,2117.6,2117.1,0.56311471]
[1773569930445,7.7e-07,2117.6,2117.1,0.56311471]
[1773569930846,0.58267901,2118.1,2117.1,0.56311471]
[1773569931851,0.58669593,2118.1,2117.2,0.58671857]
[1773569934052,0.00401692,2118.1,2117.2,0.58671857]
[1773569935553,0.55468852,2118.1,2117.2,0.58671857]
[1773569936944,0.00401692,2118.1,2117.4,0.58671857]
[1773569941747,0.5506716,2118.0,2117.4,0.58671857]
[1773569941949,0.00401692,2118.1,2117.4,0.58671857]
[1773569942346,0.00401692,2118.1,2117.5,40.8]
[1773569942552,0.55468852,2118.1,2117.6,0.58671857]
[1773569942854,0.00401692,2118.1,2117.6,0.58671857]
[1773569943152,0.55468852,2118.1,2117.6,0.58671857]
[1773569944059,0.00401692,2118.1,2117.6,0.58671857]
[1773569945356,1.27152672,2118.7,2117.7,0.58671857]
[1773569945357,1.82219832,2118.7,2117.7,0.58671857]
[1773569945557,0.5506716,2118.6,2117.7,0.58671857]
[1773569945754,0.5506716,2118.6,2117.8,0.58671857]
[1773569946459,0.5550228,2118.6,2117.8,0.58671857]
[1773569948061,0.0043512,2118.6,2117.8,0.58671857]
[1773569950764,1.27152672,2118.7,2118.0,0.58671857]
[1773569950963,0.5506716,2118.9,2118.0,0.58671857]
[1773569951259,0.5506716,2119.3,2118.2,0.58671857]
[1773569951459,0.5506716,2119.3,2118.4,0.58671857]
[1773569951859,0.5506716,2119.3,2118.4,0.59130422]
[1773569951860,0.55420113,2119.3,2118.4,0.59130422]
[1773569953163,0.55420113,2119.3,2118.6,0.58671857]
[1773569953663,0.00352953,2119.3,2118.6,0.58671857]
[1773569953869,0.5506716,2119.9,2118.6,0.58671857]
[1773569954969,0.5506716,2119.8,2118.6,0.58671857]
[1773569958467,0.5506716,2119.8,2118.8,0.58671857]
[1773569959872,0.5506716,2119.7,2118.8,0.58671857]
[1773569962272,0.7865216,2119.7,2118.7,40.8]
[1773569962467,0.55680832,2119.6,2118.6,0.54678911]
[1773569962975,0.55680832,2119.6,2118.6,41.34678911]
[1773569963974,0.55680832,2119.6,2118.7,0.54678911]
[1773569974982,0.55680832,2119.4,2118.5,0.54678911]
[1773569975490,0.55680832,2119.4,2118.5,41.34678911]
[1773569977882,0.55680832,2119.1,2118.5,0.54678911]
[1773569982294,0.55680832,2119.1,2118.4,0.00458565]
[1773569982488,0.55680832,2119.1,2118.5,0.54678911]
[1773569983193,0.55680832,2119.0,2118.5,0.54678911]
[1773569983796,0.55680832,2119.1,2118.4,0.00458565]
[1773569983995,0.55680832,2119.1,2118.4,0.55137476]
[1773569986999,0.55680832,2119.0,2118.4,0.55137476]
[1773569987700,0.55680832,2119.0,2118.4,0.00458565]
[1773569988403,0.55680832,2119.0,2118.4,0.55137476]
[1773569988897,11.485,2118.9,2118.4,0.55137476]
[1773569989201,0.55680832,2118.8,2118.4,0.55137476]
[1773569993907,12.11080832,2118.8,2118.4,0.55137476]
[1773569995209,0.57222405,2118.7,2118.4,0.55137476]
[1773569995411,0.57222405,2118.7,2118.4,0.52937548]
[1773569996310,0.57222405,2118.7,2118.4,0.53550305]
[1773569996511,0.57222405,2118.7,2118.4,0.00612757]
[1773569996809,0.57222405,2118.7,2118.3,0.55327427]
[1773569997609,0.57222405,2118.7,2118.3,0.55699216]
[1773569997806,0.57222405,2118.7,2118.3,0.00371789]
[1773569998410,0.57222405,2118.7,2118.3,0.55699216]
[1773570001306,0.57222405,2118.7,2118.3,0.00371789]
[1773570001613,0.57222405,2118.7,2118.0,0.55327427]
[1773570002513,0.57222405,2118.7,2118.0,0.55896851]
[1773570006119,11.647,2118.8,2118.0,0.55896851]
[1773570006820,12.21922405,2118.8,2118.0,0.55896851]
[1773570008124,0.57222405,2118.8,2118.0,0.55896851]
[1773570008322,12.23022405,2118.8,2118.0,0.55896851]
[1773570010717,0.57222405,2118.8,2118.0,0.55896851]
[1773570010922,11.668,2118.8,2118.0,0.55896851]
[1773570011223,12.24022405,2118.8,2118.0,0.55896851]
[1773570011523,0.57222405,2118.7,2118.0,0.55896851]
[1773570014024,3.95998046,2119.4,2118.2,0.55327427]
[1773570014322,0.57222405,2119.5,2118.8,0.11495021]
[1773570014521,0.57222405,2119.5,2119.0,0.12124511]
[1773570014722,0.57222405,2119.7,2119.3,0.12124511]
[1773570015120,0.57222405,2119.7,2119.4,0.12124511]
[1773570015425,0.57222405,2119.8,2119.4,0.12124511]
[1773570015625,12.37302405,2119.8,2119.4,0.12124511]
[1773570015826,0.57222405,2119.8,2119.4,0.12124511]
[1773570016125,0.57727464,2119.9,2119.4,0.12124511]
[1773570016325,12.37807464,2119.9,2119.4,0.12124511]
[1773570016716,0.57222405,2120.5,2119.4,0.12124511]
[1773570016924,0.57222405,2120.5,2119.7,0.55327427]
[1773570017825,0.57651255,2120.5,2119.7,0.5589361]
[1773570018026,0.57222405,2120.4,2119.7,0.00566183]
[1773570018227,0.57222405,2120.3,2119.7,0.00566183]
[1773570018527,0.57222405,2120.0,2119.7,0.00566183]
[1773570018922,12.37302405,2120.0,2119.7,0.00566183]
[1773570019227,0.57222405,2119.9,2119.7,0.00566183]
[1773570019427,0.57222405,2120.3,2119.7,0.00566183]
[1773570019721,0.57222405,2120.1,2119.7,0.5589361]
[1773570019926,0.0042885,2120.5,2119.7,0.5589361]
[1773570019927,0.57222405,2120.4,2119.7,0.5589361]
[1773570021528,0.57651255,2120.5,2119.7,0.5589361]
[1773570021919,0.08209745,2121.7,2119.7,0.5589361]
[1773570021920,0.55821323,2121.3,2119.9,0.58439054]
[1773570022121,0.55821323,2121.6,2120.4,0.22827191]
[1773570022520,0.55821323,2121.6,2120.6,0.2255012]
[1773570022926,12.35901323,2121.4,2120.6,0.2255012]
[1773570023122,0.55821323,2121.4,2120.6,0.2255012]
[1773570025323,0.00471841,2121.6,2120.6,0.2255012]
[1773570025525,0.56293164,2121.6,2120.6,0.2255012]
[1773570025727,0.55821323,2121.5,2120.6,0.2255012]
[1773570026937,0.55821323,2121.4,2120.6,0.2255012]
[1773570027130,0.55821323,2121.5,2120.6,0.2255012]
[1773570027337,0.55821323,2121.4,2120.6,0.2255012]
[1773570028037,0.55821323,2121.3,2120.6,0.2255012]
[1773570029537,0.55821323,2121.5,2120.6,0.2255012]
[1773570029739,12.35901323,2121.5,2120.6,0.2255012]
[1773570029939,0.55821323,2121.5,2120.6,0.2255012]
[1773570031041,12.35901323,2121.5,2120.6,0.2255012]
[1773570031243,0.55821323,2121.5,2120.6,0.2255012]
[1773570032044,0.55821323,2121.4,2120.6,0.2255012]
[1773570032543,0.00471841,2121.6,2120.6,0.2255012]
[1773570032544,0.55821323,2121.2,2120.6,0.2255012]
[1773570033044,12.35901323,2121.2,2120.6,0.2255012]
[1773570033244,11.8008,2121.2,2120.6,0.2255012]
[1773570033444,0.55821323,2121.3,2120.6,0.2255012]
[1773570033641,11.8008,2121.2,2120.6,0.2255012]
[1773570034041,0.55821323,2121.3,2120.6,0.2255012]
[1773570034242,0.55821323,2121.4,2120.6,0.2255012]
[1773570035243,0.55821323,2121.3,2120.6,0.2255012]
[1773570035942,0.55821323,2121.2,2120.6,0.2255012]
[1773570037546,12.35901323,2121.2,2120.6,0.2255012]
[1773570037747,0.55821323,2121.1,2120.6,0.2255012]
[1773570037944,0.55821323,2121.2,2120.6,0.2255012]
[1773570038346,0.55821323,2121.1,2120.5,41.01709872]
[1773570038546,0.55821323,2121.1,2120.6,0.21709872]
[1773570038743,11.8008,2121.0,2120.6,0.21709872]
[1773570039250,12.35901323,2121.0,2120.6,0.21709872]
[1773570039443,0.55821323,2121.0,2120.6,0.21709872]
[1773570039751,0.55821323,2121.5,2120.6,0.21709872]
[1773570040050,0.55821323,2121.2,2120.6,0.21709872]
[1773570040949,11.8008,2121.1,2120.6,0.21709872]
[1773570041149,12.35901323,2121.1,2120.6,0.21709872]
[1773570041449,0.00471841,2121.6,2120.6,0.21709872]
[1773570041450,0.55821323,2121.3,2120.6,0.21709872]
[1773570041950,11.8008,2121.1,2120.6,0.21709872]
[1773570042146,0.55821323,2121.1,2120.6,0.21709872]
[1773570042451,0.55821323,2121.0,2120.6,0.21709872]
[1773570043047,12.35901323,2121.0,2120.6,0.21709872]
[1773570043450,11.8008,2121.0,2120.6,0.21709872]
[1773570043652,0.55821323,2121.1,2120.6,0.21709872]
[1773570044048,0.55821323,2121.3,2120.6,4.10096486]
[1773570044350,0.55821323,2121.3,2120.7,3.88386614]
[1773570044544,10.54823848,2121.1,2120.7,3.88386614]
[1773570044948,0.55821323,2121.3,2120.7,3.91285319]
[1773570045547,10.54823848,2121.1,2120.7,3.91285319]
[1773570045945,10.54823848,2121.0,2120.7,3.91285319]
[1773570046151,0.55821323,2121.3,2120.8,3.91285319]
[1773570046551,11.14335818,2121.0,2120.7,3.91285319]
[1773570046848,0.5951197,2121.0,2120.7,3.91285319]
[1773570047152,10.54823848,2120.9,2120.8,3.91285319]
[1773570047854,10.01552905,2120.9,2120.8,3.91285319]
[1773570048154,9.47197953,2120.9,2120.8,2.74159523]
[1773570048452,8.92671895,2120.9,2120.8,2.74159523]
[1773570048652,8.56236331,2120.9,2120.8,2.74159523]
[1773570048852,8.19734096,2120.9,2120.8,2.74159523]
[1773570049047,7.8316778,2120.9,2120.8,2.74159523]
[1773570049248,7.46550784,2120.9,2120.7,5.88784765]
[1773570049449,0.41272381,2121.2,2120.8,0.17818363]
[1773570050356,0.41272381,2121.2,2120.8,6.06603128]
[1773570051159,0.41272381,2121.2,2121.0,5.88784765]
[1773570053656,0.41272381,2121.2,2121.0,3.63187609]
[1773570053853,0.73503727,2121.5,2120.9,0.7376713]
[1773570054655,0.73503727,2121.5,2120.8,7.43576669]
[1773570054860,0.73503727,2121.5,2120.6,7.43576669]
[1773570055256,0.73503727,2121.5,2120.7,0.7376713]
[1773570055455,0.73503727,2121.5,2120.6,7.43576669]
[1773570055660,0.73503727,2121.5,2120.5,48.97343799]
[1773570055859,0.73503727,2121.5,2120.7,0.7376713]
[1773570056057,0.73503727,2121.5,2120.8,0.7376713]
[1773570056458,0.73503727,2121.5,2120.7,7.43576669]
[1773570058166,0.73503727,2121.5,2120.6,0.7376713]
[1773570058556,0.73503727,2121.4,2120.2,0.7376713]
[1773570058760,0.73503727,2121.3,2120.2,0.7376713]
[1773570059064,0.73503727,2121.3,2120.3,40.8]
[1773570059756,0.73503727,2121.3,2120.4,0.7376713]
[1773570059962,0.73503727,2121.1,2120.4,0.7376713]
[1773570061361,0.73503727,2121.3,2120.4,0.7376713]
[1773570064471,0.73503727,2121.2,2120.4,0.7376713]
[1773570072876,0.73503727,2121.2,2120.1,0.7376713]
[1773570073371,0.73503727,2121.2,2120.2,41.5376713]
[1773570074574,0.73503727,2121.2,2120.2,40.8]
[1773570074774,0.73503727,2121.2,2120.1,0.7376713]
[1773570075176,0.73503727,2121.2,2120.1,41.5376713]
[1773570075681,0.73503727,2121.2,2120.2,0.7376713]
[1773570076180,0.73503727,2121.2,2120.0,0.7376713]
[1773570076680,0.73503727,2121.2,2120.0,41.5376713]
[1773570077379,0.73503727,2121.0,2120.0,41.5376713]
[1773570077882,0.73503727,2121.0,2120.1,0.7376713]
[1773570078376,0.73503727,2121.0,2120.0,40.8]
[1773570079277,0.73503727,2121.0,2119.9,0.7376713]
[1773570079683,0.73503727,2121.0,2119.9,41.5376713]
[1773570080182,0.73503727,2121.0,2120.0,0.7376713]
[1773570080380,0.73503727,2120.8,2120.0,0.7376713]
[1773570081981,0.73503727,2120.8,2119.9,40.8]
[1773570082182,0.73503727,2120.8,2119.9,41.77400803]
[1773570083478,0.73503727,2120.8,2120.0,0.97400803]
[1773570084684,0.96694732,2120.6,2120.0,0.97400803]
[1773570090585,0.96694732,2120.6,2119.8,0.97400803]
[1773570100687,0.96694732,2120.4,2119.8,0.97400803]
[1773570101992,0.96694732,2120.4,2119.7,0.00566183]
[1773570102188,0.96694732,2120.4,2119.7,0.97966986]
[1773570102989,0.96694732,2120.4,2119.7,0.00566183]
[1773570104889,0.96694732,2120.4,2119.7,0.97966986]
[1773570105089,11.467,2120.3,2119.7,0.97966986]
[1773570106587,12.43394732,2120.3,2119.7,0.97966986]
[1773570107389,0.96694732,2120.6,2119.7,0.97966986]
[1773570107587,0.96694732,2120.4,2119.8,0.97400803]
[1773570107890,11.466,2120.3,2119.8,0.97400803]
[1773570108085,11.466,2120.3,2119.9,0.97400803]
[1773570108282,12.43294732,2120.3,2119.9,0.97400803]
[1773570111094,0.911216,2120.2,2119.8,4.83115729]
[1773570111295,0.911216,2120.2,2119.6,3.5992029]
[1773570111594,0.911216,2120.2,2119.6,4.48967841]
[1773570112296,0.911216,2120.2,2119.6,4.49555237]
[1773570113595,0.911216,2120.2,2119.6,3.60507686]
[1773570116398,0.911216,2120.2,2119.6,4.51096292]
[1773570116799,0.911216,2120.2,2119.6,0.91176002]
[1773570118208,12.40714651,2120.1,2119.6,0.91176002]
[1773570118409,12.41179323,2120.1,2119.6,0.91176002]